fUST/lending_fUST_20250822
["ID","MTS","AMOUNT","RATE_DAILY","PERIOD"]
[380509462,1755797444437,-5269.04,0.0002007,2]
[380509464,1755797444447,-480.0,0.0002007,2]
[380509466,1755797444458,-480.0,0.0002007,2]
[380509468,1755797444467,-480.0,0.0002007,2]
[380509470,1755797444477,-986.09,0.0002007,2]
[380509472,1755797444486,-4029.63,0.0002007,2]
[380509474,1755797444495,-2535.91,0.0002007,2]
[380509476,1755797444504,-480.0,0.0002007,2]
[380509478,1755797444514,-914.18,0.0002007,2]
[380509480,1755797444523,-673.2,0.0002007,2]
[380509482,1755797444533,-480.0,0.0002007,2]
[380509484,1755797444542,-954.93,0.0002007,2]
[380509486,1755797444551,-2426.89,0.0002007,2]
[380509488,1755797444560,-837.24,0.0002007,2]
[380509490,1755797444569,-1358.67,0.0002007,2]
[380509492,1755797444578,-891.4,0.0002007,2]
[380509494,1755797444587,-1065.61,0.0002007,2]
[380509496,1755797444596,-1238.92,0.0002007,2]
[380509498,1755797444605,-480.0,0.0002007,2]
[380509500,1755797444614,-1254.99,0.0002007,2]
[380509502,1755797444623,-480.0,0.0002007,2]
[380509504,1755797444632,-480.0,0.0002007,2]
[380509506,1755797444641,-1683.94,0.0002007,2]
[380509508,1755797444650,-1300.44,0.0002007,2]
[380509510,1755797444660,-3698.0,0.0002007,2]
[380509512,1755797444669,-480.0,0.0002007,2]
[380509514,1755797444679,-1000.0,0.0002007,2]
[380509516,1755797444689,-613.78,0.00020071,2]
[380509518,1755797444698,-480.0,0.00020071,2]
[380509520,1755797444710,-480.0,0.00020071,2]
[380509522,1755797444720,-480.0,0.00020071,2]
[380509524,1755797444729,-480.0,0.00020071,2]
[380509525,1755797444738,-480.0,0.00020071,2]
[380509527,1755797444748,-480.0,0.00020071,2]
[380509529,1755797444758,-480.0,0.00020071,2]
[380509531,1755797444767,-177.37312554,0.00020071,2]
[380509533,1755797444775,-480.0,0.00020071,2]
[380509535,1755797444784,-519.02,0.00020071,2]
[380509537,1755797444796,-517.96,0.00020071,2]
[380509539,1755797444804,-513.05,0.00020071,2]
[380509541,1755797444813,-429.49970898,0.00020071,2]
[380509543,1755797444822,-480.0,0.00020071,2]
[380509545,1755797444831,-3286.76,0.00020071,2]
[380509547,1755797444841,-2432.73,0.00020071,2]
[380509549,1755797444850,-480.0,0.00020071,2]
[380509551,1755797444859,-480.0,0.00020071,2]
[380509553,1755797444868,-480.0,0.00020071,2]
[380509555,1755797444877,-480.0,0.00020071,2]
[380509557,1755797444886,-1016.44,0.00020071,2]
[380509559,1755797444895,-1160.44,0.00020071,2]
[380509561,1755797444904,-480.0,0.00020071,2]
[380509563,1755797444914,-480.0,0.00020071,2]
[380509565,1755797444923,-11228.3,0.00020071,2]
[380509567,1755797444932,-11389.72,0.00020071,2]
[380509568,1755797444941,-1435.74,0.00020071,2]
[380509569,1755797444951,-830.57,0.00020071,2]
[380509570,1755797444961,-2172.53,0.00020071,2]
[380509571,1755797444970,-480.0,0.00020071,2]
[380509572,1755797444980,-561.23316046,0.00020071,2]
[380509573,1755797444989,-480.0,0.00020071,2]
[380509574,1755797444998,-179.0,0.00020147,2]
[380509575,1755797445007,-432.9956521,0.00020158,2]
[380509576,1755797445016,-480.0,0.0002017,2]
[380509577,1755797445025,-480.0,0.0002017,2]
[380509578,1755797445034,-480.0,0.0002017,2]
[380509579,1755797445043,-480.0,0.0002017,2]
[380509580,1755797445052,-620.85877509,0.0002017,2]
[380509581,1755797445061,-540.18,0.0002017,2]
[380509583,1755797445071,-480.0,0.0002017,2]
[380509585,1755797445080,-480.0,0.0002017,2]
[380509587,1755797445089,-825.66,0.0002017,2]
[380509589,1755797445098,-743.68,0.0002017,2]
[380509591,1755797445107,-480.0,0.0002017,2]
[380509593,1755797445117,-480.0,0.0002017,2]
[380509595,1755797445125,-480.0,0.0002017,2]
[380509597,1755797445134,-1813.05,0.0002017,2]
[380509599,1755797445143,-480.0,0.0002017,2]
[380509601,1755797445153,-178.333883,0.0002017,2]
[380509603,1755797445163,-578.39,0.0002017,2]
[380509605,1755797445171,-610.33,0.0002017,2]
[380509607,1755797445180,-480.0,0.0002017,2]
[380509609,1755797445191,-1741.58,0.0002017,2]
[380509611,1755797445201,-503.69,0.0002017,2]
[380509614,1755797445211,-480.0,0.0002017,2]
[380509615,1755797445220,-480.0,0.0002017,2]
[380509617,1755797445229,-512.51,0.0002017,2]
[380509619,1755797445238,-480.0,0.0002017,2]
[380509621,1755797445247,-480.0,0.0002017,2]
[380509623,1755797445257,-716.44,0.0002017,2]
[380509625,1755797445266,-967.43,0.0002017,2]
[380509627,1755797445275,-717.68,0.0002017,2]
[380509629,1755797445284,-6848.12,0.0002017,2]
[380509631,1755797445293,-736.01,0.0002017,2]
[380509633,1755797445303,-1732.99,0.0002017,2]
[380509635,1755797445311,-852.34,0.0002017,2]
[380509637,1755797445320,-4019.45,0.0002017,2]
[380509639,1755797445330,-1030.75,0.0002017,2]
[380509641,1755797445339,-480.0,0.0002017,2]
[380509643,1755797445349,-1647.15,0.0002017,2]
[380509645,1755797445358,-1369.83,0.0002017,2]
[380509647,1755797445367,-480.0,0.0002017,2]
[380509649,1755797445376,-480.0,0.0002017,2]
[380509651,1755797445385,-480.0,0.0002017,2]
[380509653,1755797445394,-2785.35,0.0002017,2]
[380509655,1755797445404,-480.0,0.0002017,2]
[380509657,1755797445414,-898.2,0.0002017,2]
[380509659,1755797445423,-662.76,0.0002017,2]
[380509661,1755797445431,-480.0,0.0002017,2]
[380509663,1755797445441,-480.0,0.0002017,2]
[380509664,1755797445450,-1070.54,0.0002017,2]
[380509666,1755797445460,-3727.42,0.0002017,2]
[380509668,1755797445469,-480.0,0.0002017,2]
[380509670,1755797445479,-500.0,0.00020173,2]
[380509672,1755797445488,-501.27875092,0.00020173,2]
[380509674,1755797445497,-267.9517493,0.00020173,2]
[380509676,1755797445507,-480.0,0.00020173,2]
[380509678,1755797445516,-662.32,0.00020173,2]
[380509680,1755797445527,-904.74,0.00020173,2]
[380509683,1755797445536,-480.0,0.00020173,2]
[380509684,1755797445546,-480.0,0.00020173,2]
[380509687,1755797445555,-480.0,0.00020173,2]
[380509689,1755797445565,-480.0,0.00020173,2]
[380509691,1755797445574,-480.0,0.00020173,2]
[380509693,1755797445584,-480.0,0.00020173,2]
[380509694,1755797445593,-480.0,0.00020173,2]
[380509696,1755797445603,-480.0,0.00020173,2]
[380509698,1755797445613,-684.51,0.00020173,2]
[380509700,1755797445623,-906.65,0.00020173,2]
[380509702,1755797445632,-480.0,0.00020173,2]
[380509704,1755797445641,-729.6,0.00020173,2]
[380509706,1755797445651,-480.0,0.00020173,2]
[380509708,1755797445662,-480.0,0.00020173,2]
[380509710,1755797445671,-480.0,0.00020173,2]
[380509712,1755797445680,-529.98,0.00020173,2]
[380509714,1755797445690,-480.0,0.00020173,2]
[380509716,1755797445699,-480.0,0.00020173,2]
[380509718,1755797445712,-480.0,0.00020173,2]
[380509720,1755797445722,-480.0,0.00020173,2]
[380509722,1755797445731,-480.0,0.00020173,2]
[380509724,1755797445741,-480.0,0.00020173,2]
[380509726,1755797445751,-480.0,0.00020173,2]
[380509728,1755797445760,-480.0,0.00020173,2]
[380509730,1755797445770,-480.0,0.00020173,2]
[380509732,1755797445781,-480.0,0.00020173,2]
[380509734,1755797445790,-480.0,0.00020173,2]
[380509736,1755797445800,-480.0,0.00020173,2]
[380509738,1755797445810,-563.78,0.00020173,2]
[380509740,1755797445819,-480.0,0.00020173,2]
[380509742,1755797445829,-480.0,0.00020173,2]
[380509744,1755797445839,-480.0,0.00020173,2]
[380509746,1755797445848,-480.0,0.00020173,2]
[380509747,1755797445857,-779.37,0.00020173,2]
[380509749,1755797445867,-480.0,0.00020173,2]
[380509751,1755797445876,-350.53479837,0.00020173,2]
[380509753,1755797445885,-480.0,0.00020173,2]
[380509755,1755797445895,-307.39758245,0.00020173,2]
[380509757,1755797445904,-477.12169177,0.00020173,2]
[380509759,1755797445913,-480.0,0.00020173,2]
[380509761,1755797445923,-480.0,0.00020173,2]
[380509763,1755797445933,-480.0,0.00020185,2]
[380509765,1755797445942,-1302.22,0.00020185,2]
[380509767,1755797445951,-480.0,0.00020185,2]
[380509769,1755797445961,-480.0,0.00020185,2]
[380509771,1755797445971,-480.0,0.00020186,2]
[380509773,1755797445980,-480.0,0.00020186,2]
[380509775,1755797445990,-480.0,0.00020186,2]
[380509777,1755797446000,-480.0,0.00020186,2]
[380509779,1755797446009,-392.47998326,0.00020186,2]
[380509781,1755797446019,-480.0,0.00020186,2]
[380509783,1755797446028,-480.0,0.00020186,2]
[380509785,1755797446038,-480.0,0.00020186,2]
[380509787,1755797446047,-480.0,0.00020186,2]
[380509789,1755797446057,-480.0,0.00020186,2]
[380509791,1755797446068,-480.0,0.00020186,2]
[380509793,1755797446077,-480.0,0.00020186,2]
[380509795,1755797446087,-480.0,0.00020186,2]
[380509797,1755797446096,-714.35,0.00020186,2]
[380509799,1755797446106,-480.0,0.00020186,2]
[380509801,1755797446115,-480.0,0.00020186,2]
[380509803,1755797446125,-480.0,0.00020186,2]
[380509805,1755797446135,-480.0,0.00020186,2]
[380509807,1755797446144,-480.0,0.00020186,2]
[380509809,1755797446154,-1000.0,0.00020221,2]
[380509811,1755797446163,-500.0,0.00020292,2]
[380509813,1755797446173,-1000.0,0.00020321,2]
[380509815,1755797446183,-1000.0,0.00020321,2]
[380509817,1755797446192,-1000.0,0.00020321,2]
[380509819,1755797446202,-1000.0,0.00020321,2]
[380509821,1755797446213,-1000.0,0.00020321,2]
[380509823,1755797446223,-1000.0,0.00020321,2]
[380509825,1755797446232,-480.0,0.00020343,2]
[380509827,1755797446242,-747.37,0.00020343,2]
[380509829,1755797446252,-968.79,0.00020343,2]
[380509831,1755797446262,-751.51,0.00020343,2]
[380509833,1755797446272,-480.0,0.00020343,2]
[380509835,1755797446282,-4465.99,0.00020343,2]
[380509837,1755797446292,-500.0,0.00020343,2]
[380509839,1755797446302,-382.69159453,0.00020343,2]
[380509841,1755797446311,-500.0,0.00020343,2]
[380509843,1755797446321,-500.0,0.00020343,2]
[380509845,1755797446331,-500.0,0.00020343,2]
[380509847,1755797446340,-500.0,0.00020343,2]
[380509849,1755797446349,-251.22082818,0.00020343,2]
[380509851,1755797446360,-500.0,0.00020343,2]
[380509853,1755797446370,-500.0,0.00020343,2]
[380509855,1755797446380,-500.0,0.00020343,2]
[380509857,1755797446390,-500.0,0.00020343,2]
[380509859,1755797446399,-500.0,0.00020343,2]
[380509861,1755797446409,-496.84,0.00020344,2]
[380509863,1755797446418,-480.0,0.00020344,2]
[380509865,1755797446428,-480.0,0.00020344,2]
[380509867,1755797446438,-1345.02,0.00020344,2]
[380509869,1755797446448,-2124.36,0.00020344,2]
[380509871,1755797446457,-1224.53,0.00020344,2]
[380509873,1755797446467,-480.0,0.00020344,2]
[380509875,1755797446476,-480.0,0.00020344,2]
[380509877,1755797446485,-480.0,0.00020344,2]
[380509879,1755797446494,-480.0,0.00020344,2]
[380509881,1755797446504,-1262.82,0.00020344,2]
[380509883,1755797446513,-1395.19,0.00020344,2]
[380509885,1755797446523,-480.0,0.00020344,2]
[380509887,1755797446533,-480.0,0.00020344,2]
[380509889,1755797446542,-1824.98,0.00020344,2]
[380509891,1755797446551,-776.68,0.00020344,2]
[380509893,1755797446562,-480.0,0.00020344,2]
[380509895,1755797446571,-555.14,0.00020344,2]
[380509898,1755797446581,-480.0,0.00020344,2]
[380509899,1755797446590,-5299.52,0.00020344,2]
[380509902,1755797446600,-2220.01,0.00020344,2]
[380509904,1755797446609,-1500.36,0.00020344,2]
[380509906,1755797446618,-480.0,0.00020344,2]
[380509908,1755797446628,-1184.95,0.00020344,2]
[380509909,1755797446637,-1275.6,0.00020344,2]
[380509912,1755797446648,-480.0,0.00020344,2]
[380509914,1755797446657,-480.0,0.00020344,2]
[380509916,1755797446667,-480.0,0.00020344,2]
[380509918,1755797446678,-821.32,0.00020344,2]
[380509920,1755797446689,-480.0,0.00020344,2]
[380509922,1755797446699,-480.0,0.00020344,2]
[380509923,1755797446712,-1677.65,0.00020344,2]
[380509925,1755797446723,-5269.04,0.00020344,2]
[380509927,1755797446733,-480.0,0.00020344,2]
[380509929,1755797446742,-480.0,0.00020344,2]
[380509931,1755797446752,-480.0,0.00020344,2]
[380509933,1755797446762,-986.09,0.00020344,2]
[380509936,1755797446772,-4029.63,0.00020344,2]
[380509937,1755797446782,-2535.91,0.00020344,2]
[380509939,1755797446792,-480.0,0.00020344,2]
[380509942,1755797446802,-914.18,0.00020344,2]
[380509943,1755797446811,-673.2,0.00020344,2]
[380509946,1755797446821,-480.0,0.00020344,2]
[380509948,1755797446830,-954.93,0.00020344,2]
[380509949,1755797446840,-2426.89,0.00020344,2]
[380509952,1755797446849,-837.24,0.00020344,2]
[380509954,1755797446859,-1358.67,0.00020344,2]
[380509956,1755797446868,-891.4,0.00020344,2]
[380509958,1755797446878,-1065.61,0.00020344,2]
[380509960,1755797446888,-1238.92,0.00020344,2]
[380509962,1755797446898,-480.0,0.00020344,2]
[380509964,1755797446908,-1254.99,0.00020344,2]
[380509966,1755797446918,-480.0,0.00020344,2]
[380509967,1755797446927,-480.0,0.00020344,2]
[380509969,1755797446936,-1683.94,0.00020344,2]
[380509972,1755797446947,-1300.44,0.00020344,2]
[380509974,1755797446957,-3698.0,0.00020344,2]
[380509976,1755797446967,-480.0,0.00020344,2]
[380509978,1755797446976,-613.78,0.00020345,2]
[380509980,1755797446986,-480.0,0.00020345,2]
[380509982,1755797446996,-482.45527504,0.00020345,2]
[380509984,1755797447005,-480.0,0.00020345,2]
[380509986,1755797447015,-480.0,0.00020345,2]
[380509988,1755797447024,-480.0,0.00020345,2]
[380509990,1755797447033,-480.0,0.00020345,2]
[380509992,1755797447043,-480.0,0.00020345,2]
[380509994,1755797447052,-480.0,0.00020345,2]
[380509996,1755797447063,-519.02,0.00020345,2]
[380509998,1755797447072,-517.96,0.00020345,2]
[380510000,1755797447081,-513.05,0.00020345,2]
[380510002,1755797447090,-480.0,0.00020345,2]
[380510004,1755797447100,-3286.76,0.00020345,2]
[380510006,1755797447109,-2432.73,0.00020345,2]
[380510008,1755797447119,-480.0,0.00020345,2]
[380510010,1755797447129,-480.0,0.00020345,2]
[380510012,1755797447138,-480.0,0.00020345,2]
[380510014,1755797447148,-480.0,0.00020345,2]
[380510016,1755797447157,-1016.44,0.00020345,2]
[380510018,1755797447167,-1160.44,0.00020345,2]
[380510020,1755797447176,-480.0,0.00020345,2]
[380510022,1755797447186,-480.0,0.00020345,2]
[380510024,1755797447195,-11228.3,0.00020345,2]
[380510026,1755797447204,-11389.72,0.00020345,2]
[380510028,1755797447214,-1435.74,0.00020345,2]
[380510030,1755797447224,-830.57,0.00020345,2]
[380510032,1755797447233,-2172.53,0.00020345,2]
[380510034,1755797447243,-480.0,0.00020345,2]
[380510036,1755797447253,-480.0,0.00020345,2]
[380510038,1755797447263,-332.77917563,0.00020421,2]
[380510040,1755797447272,-1000.0,0.00020421,2]
[380510042,1755797447283,-585.76118646,0.00020421,2]
[380510044,1755797447293,-1000.0,0.00020421,2]
[380510046,1755797447303,-1000.0,0.00020421,2]
[380510048,1755797447312,-1000.0,0.00020421,2]
[380510050,1755797447322,-2581.82688372,0.00020433,2]
[380510052,1755797447332,-480.0,0.00020444,2]
[380510054,1755797447342,-480.0,0.00020444,2]
[380510056,1755797447352,-480.0,0.00020444,2]
[380510058,1755797447362,-480.0,0.00020444,2]
[380510060,1755797447371,-540.18,0.00020444,2]
[380510062,1755797447381,-480.0,0.00020444,2]
[380510064,1755797447391,-480.0,0.00020444,2]
[380510066,1755797447400,-825.66,0.00020444,2]
[380510068,1755797447410,-743.68,0.00020444,2]
[380510070,1755797447419,-337.23602131,0.00020444,2]
[380510072,1755797447430,-480.0,0.00020444,2]
[380510074,1755797447441,-480.0,0.00020444,2]
[380510076,1755797447450,-1813.05,0.00020444,2]
[380510078,1755797447462,-480.0,0.00020444,2]
[380510080,1755797447471,-578.39,0.00020444,2]
[380510082,1755797447481,-610.33,0.00020444,2]
[380510084,1755797447490,-480.0,0.00020444,2]
[380510086,1755797447500,-1741.58,0.00020444,2]
[380510089,1755797447509,-503.69,0.00020444,2]
[380510090,1755797447518,-480.0,0.00020444,2]
[380510093,1755797447528,-480.0,0.00020444,2]
[380510095,1755797447537,-512.51,0.00020444,2]
[380510097,1755797447547,-480.0,0.00020444,2]
[380510098,1755797447556,-480.0,0.00020444,2]
[380510101,1755797447567,-716.44,0.00020444,2]
[380510103,1755797447576,-967.43,0.00020444,2]
[380510104,1755797447586,-717.68,0.00020444,2]
[380510107,1755797447595,-6848.12,0.00020444,2]
[380510109,1755797447605,-736.01,0.00020444,2]
[380510111,1755797447615,-1732.99,0.00020444,2]
[380510113,1755797447624,-852.34,0.00020444,2]
[380510115,1755797447639,-4019.45,0.00020444,2]
[380510117,1755797447648,-1030.75,0.00020444,2]
[380510119,1755797447658,-480.0,0.00020444,2]
[380510121,1755797447668,-1647.15,0.00020444,2]
[380510123,1755797447678,-1369.83,0.00020444,2]
[380510125,1755797447688,-480.0,0.00020444,2]
[380510146,1755797447873,-480.0,0.00020444,2]
[380510148,1755797447883,-480.0,0.00020444,2]
[380510150,1755797447892,-2785.35,0.00020444,2]
[380510152,1755797447902,-480.0,0.00020444,2]
[380510154,1755797447912,-898.2,0.00020444,2]
[380510156,1755797447921,-662.76,0.00020444,2]
[380510158,1755797447931,-480.0,0.00020444,2]
[380510160,1755797447941,-480.0,0.00020444,2]
[380510162,1755797447950,-1070.54,0.00020444,2]
[380510164,1755797447962,-3727.42,0.00020444,2]
[380510166,1755797447971,-480.0,0.00020444,2]
[380510168,1755797447980,-480.0,0.00020447,2]
[380510170,1755797447990,-662.32,0.00020447,2]
[380510172,1755797447999,-904.74,0.00020447,2]
[380510174,1755797448009,-480.0,0.00020447,2]
[380510176,1755797448018,-480.0,0.00020447,2]
[380510178,1755797448027,-480.0,0.00020447,2]
[380510180,1755797448037,-480.0,0.00020447,2]
[380510182,1755797448047,-480.0,0.00020447,2]
[380510184,1755797448057,-480.0,0.00020447,2]
[380510186,1755797448066,-480.0,0.00020447,2]
[380510188,1755797448076,-480.0,0.00020447,2]
[380510189,1755797448085,-684.51,0.00020447,2]
[380510191,1755797448095,-906.65,0.00020447,2]
[380510194,1755797448104,-480.0,0.00020447,2]
[380510196,1755797448114,-729.6,0.00020447,2]
[380510197,1755797448123,-480.0,0.00020447,2]
[380510199,1755797448133,-480.0,0.00020447,2]
[380510201,1755797448143,-529.98,0.00020447,2]
[380510203,1755797448152,-480.0,0.00020447,2]
[380510205,1755797448161,-480.0,0.00020447,2]
[380510207,1755797448170,-480.0,0.00020447,2]
[380510209,1755797448182,-480.0,0.00020447,2]
[380510211,1755797448191,-480.0,0.00020447,2]
[380510213,1755797448200,-480.0,0.00020447,2]
[380510215,1755797448212,-366.03576014,0.00020447,2]
[380510217,1755797448222,-563.78,0.00020447,2]
[380510219,1755797448231,-480.0,0.00020447,2]
[380510221,1755797448241,-480.0,0.00020447,2]
[380510223,1755797448251,-480.0,0.00020447,2]
[380510225,1755797448260,-480.0,0.00020447,2]
[380510227,1755797448269,-779.37,0.00020447,2]
[380510229,1755797448279,-480.0,0.00020447,2]
[380510231,1755797448288,-480.0,0.00020447,2]
[380510233,1755797448297,-480.0,0.00020447,2]
[380510235,1755797448307,-342.73129191,0.00020447,2]
[380510237,1755797448316,-480.0,0.00020459,2]
[380510239,1755797448326,-1302.22,0.00020459,2]
[380510241,1755797448335,-480.0,0.00020459,2]
[380510243,1755797448345,-480.0,0.00020459,2]
[380510245,1755797448355,-480.0,0.0002046,2]
[380510247,1755797448365,-480.0,0.0002046,2]
[380510249,1755797448375,-480.0,0.0002046,2]
[380510251,1755797448384,-480.0,0.0002046,2]
[380510253,1755797448393,-480.0,0.0002046,2]
[380510255,1755797448403,-480.0,0.0002046,2]
[380510257,1755797448413,-480.0,0.0002046,2]
[380510259,1755797448422,-480.0,0.0002046,2]
[380510261,1755797448431,-480.0,0.0002046,2]
[380510263,1755797448440,-480.0,0.0002046,2]
[380510265,1755797448449,-480.0,0.0002046,2]
[380510267,1755797448460,-714.35,0.0002046,2]
[380510269,1755797448469,-480.0,0.0002046,2]
[380510271,1755797448478,-480.0,0.0002046,2]
[380510273,1755797448487,-480.0,0.0002046,2]
[380510275,1755797448496,-480.0,0.0002046,2]
[380510277,1755797448506,-480.0,0.0002046,2]
[380510279,1755797448515,-500.0,0.00020473,2]
[380510281,1755797448524,-500.0,0.00020473,2]
[380510283,1755797448534,-500.0,0.00020473,2]
[380510285,1755797448543,-500.0,0.00020473,2]
[380510287,1755797448552,-500.0,0.00020473,2]
[380510289,1755797448562,-249.31231041,0.00020473,2]
[380510291,1755797448572,-258.79486515,0.00020473,2]
[380510293,1755797448581,-500.0,0.00020473,2]
[380510295,1755797448591,-500.0,0.00020473,2]
[380510297,1755797448601,-341.47280207,0.00020473,2]
[380510299,1755797448611,-500.0,0.00020473,2]
[380510301,1755797448620,-500.55609392,0.00020473,2]
[380510303,1755797448630,-188.79814454,0.00020473,2]
[380510305,1755797448639,-400.78864852,0.00020473,2]
[380510307,1755797448649,-500.0,0.00020473,2]
[380510309,1755797448658,-160.3201214,0.00020473,2]
[380510311,1755797448667,-500.0,0.00020473,2]
[380510313,1755797448677,-158.70669821,0.00020473,2]
[380510315,1755797448687,-500.0,0.00020473,2]
[380510317,1755797448696,-500.0,0.00020473,2]
[380510319,1755797448706,-500.0,0.00020473,2]
[380510321,1755797448718,-432.9956521,0.00020475,2]
[380510323,1755797448728,-2985.0,0.00020495,2]
[380510325,1755797448737,-2985.0,0.00020526,2]
[380510327,1755797448747,-232.28399145,0.00020584,2]
[380510329,1755797448757,-160.0,0.00020584,2]
[380510331,1755797448767,-160.0,0.00020584,2]
[380510333,1755797448776,-216.95272161,0.00020584,2]
[380510334,1755797448785,-160.0,0.00020584,2]
[380510336,1755797448795,-844.19128999,0.00020584,2]
[380510338,1755797448805,-160.0,0.00020584,2]
[380510340,1755797448815,-480.0,0.00020617,2]
[380510342,1755797448824,-747.37,0.00020617,2]
[380510345,1755797448834,-968.79,0.00020617,2]
[380510347,1755797448844,-751.51,0.00020617,2]
[380510349,1755797448853,-480.0,0.00020617,2]
[380510351,1755797448863,-4465.99,0.00020617,2]
[380510353,1755797448872,-496.84,0.00020618,2]
[380510355,1755797448882,-480.0,0.00020618,2]
[380510357,1755797448892,-480.0,0.00020618,2]
[380510359,1755797448901,-1345.02,0.00020618,2]
[380510361,1755797448911,-2124.36,0.00020618,2]
[380510363,1755797448920,-1224.53,0.00020618,2]
[380510365,1755797448930,-480.0,0.00020618,2]
[380510367,1755797448939,-480.0,0.00020618,2]
[380510369,1755797448949,-480.0,0.00020618,2]
[380510371,1755797448959,-480.0,0.00020618,2]
[380510373,1755797448968,-1262.82,0.00020618,2]
[380510375,1755797448978,-1395.19,0.00020618,2]
[380510377,1755797448987,-480.0,0.00020618,2]
[380510378,1755797448997,-480.0,0.00020618,2]
[380510380,1755797449005,-1824.98,0.00020618,2]
[380510382,1755797449015,-776.68,0.00020618,2]
[380510384,1755797449024,-480.0,0.00020618,2]
[380510386,1755797449033,-555.14,0.00020618,2]
[380510388,1755797449043,-480.0,0.00020618,2]
[380510390,1755797449052,-5299.52,0.00020618,2]
[380510392,1755797449061,-2220.01,0.00020618,2]
[380510394,1755797449071,-1500.36,0.00020618,2]
[380510396,1755797449086,-480.0,0.00020618,2]
[380510398,1755797449097,-1184.95,0.00020618,2]
[380510400,1755797449108,-1275.6,0.00020618,2]
[380510402,1755797449127,-480.0,0.00020618,2]
[380510404,1755797449137,-480.0,0.00020618,2]
[380510406,1755797449146,-480.0,0.00020618,2]
[380510408,1755797449156,-821.32,0.00020618,2]
[380510410,1755797449165,-480.0,0.00020618,2]
[380510412,1755797449174,-480.0,0.00020618,2]
[380510414,1755797449183,-1677.65,0.00020618,2]
[380510415,1755797449193,-5269.04,0.00020618,2]
[380510416,1755797449202,-480.0,0.00020618,2]
[380510417,1755797449212,-480.0,0.00020618,2]
[380510418,1755797449221,-480.0,0.00020618,2]
[380510419,1755797449230,-986.09,0.00020618,2]
[380510420,1755797449239,-4029.63,0.00020618,2]
[380510421,1755797449249,-2535.91,0.00020618,2]
[380510422,1755797449258,-480.0,0.00020618,2]
[380510423,1755797449267,-914.18,0.00020618,2]
[380510424,1755797449276,-673.2,0.00020618,2]
[380510425,1755797449291,-480.0,0.00020618,2]
[380510426,1755797449301,-954.93,0.00020618,2]
[380510427,1755797449311,-2426.89,0.00020618,2]
[380510428,1755797449319,-837.24,0.00020618,2]
[380510429,1755797449328,-1358.67,0.00020618,2]
[380510430,1755797449337,-891.4,0.00020618,2]
[380510431,1755797449346,-1065.61,0.00020618,2]
[380510432,1755797449355,-1238.92,0.00020618,2]
[380510433,1755797449364,-480.0,0.00020618,2]
[380510434,1755797449373,-1254.99,0.00020618,2]
[380510435,1755797449383,-480.0,0.00020618,2]
[380510436,1755797449391,-480.0,0.00020618,2]
[380510437,1755797449400,-1683.94,0.00020618,2]
[380510438,1755797449411,-1300.44,0.00020618,2]